Cogmind - Beta 14 @@@ ROGUE MODE // 2024.09.19 @ 17:26:02 Player: meetlok Result: Destroyed by Y-45 Defender with Heavy Assault Rifle Performance ------------- Evolutions (2) 1000 Regions Visited (5) 1000 Robots Destroyed (29) 145 Value Destroyed (455) 455 Prototype IDs (6) 120 Alien Tech Used (0) 0 Bonus (33) 33 TOTAL SCORE: 2753 Bonus ------- Follower Combat Kills 33 Cogmind --------- Core Integrity 0/550 Matter 121/300 Energy 99/100 System Corruption 0% Temperature Cool (9) Movement Core (50) Location -8/Materials Parts ------- > --- POWER (2) -------- (None) > --- PROPULSION (3) --- (None) > --- UTILITY (4) ------ (None) > --- WEAPON (2) ------- (None) > --- INVENTORY (5) ---- Advanced Weight Redist. System Improved Light Armor Plating Minigun Signal Generator Peak State ------------ > --- POWER ------------ Light Ion Engine > --- PROPULSION ------- Flight Unit Improved Flight Unit > --- UTILITY ---------- Advanced Visual Processing Unit Advanced Targeting Computer ECM Suite ECM Suite > --- WEAPON ----------- Improved Assault Rifle Mini Grenade Launcher > --- INVENTORY -------- Improved Light Armor Plating Minigun Signal Generator [Rating: 19] Favorites ----------- Power Light Ion Engine Engine Light Ion Engine Propulsion Light Treads Treads Light Treads Hover Unit Hover Unit Flight Unit Flight Unit Utility ECM Suite Device ECM Suite Storage Small Storage Unit Processor Advanced Targeting Computer Weapon Light Assault Rifle Energy Gun EM Pulse Gun Ballistic Gun Light Assault Rifle Launcher Mini Grenade Launcher Special Weapon Mining Laser Build | -11 -10 -10 -9 -9 -8 ------- Run | Yrd Mat Min Mat Min Mat Slots Evolved 4 | . . . 2 . 2 Power 1 | . . . . . 1 Propulsion 1 | . . . . . 1 Utility 2 | . . . 2 . . Weapon . | . . . . . . Parts Attached 44 | 6 21 3 5 . 9 Power 6 | 1 4 . . . 1 Engine 6 | 1 4 . . . 1 Core . | . . . . . . Reactor . | . . . . . . Propulsion 14 | 2 10 . 1 . 1 Treads 3 | 2 1 . . . . Leg . | . . . . . . Wheel . | . . . . . . Hover 5 | . 5 . . . . Flight 6 | . 4 . 1 . 1 Utility 9 | 1 2 . 1 . 5 Device 3 | . 1 . 1 . 1 Storage 4 | 1 1 . . . 2 Processor 2 | . . . . . 2 Hackware . | . . . . . . Protection . | . . . . . . Artifact . | . . . . . . Weapon 15 | 2 5 3 3 . 2 Energy Gun 1 | . 1 . . . . Energy Cannon . | . . . . . . Ballistic Gun 6 | 2 2 . 1 . 1 Ballistic Cannon . | . . . . . . Launcher 4 | . 1 1 1 . 1 Special Weapon 4 | . 1 2 1 . . Impact Weapon . | . . . . . . Slashing Weapon . | . . . . . . Piercing Weapon . | . . . . . . Special Melee Weapon . | . . . . . . Unidentified Prototypes . | . . . . . . Parts Lost 11 | . 5 . . . 6 Power 2 | . 1 . . . 1 Propulsion 6 | . 3 . . . 3 Utility . | . . . . . . Weapon 3 | . 1 . . . 2 Highest Loss Streak 4 | . 3 . . . 4 To Critical Strikes . | . . . . . . Average Slot Usage (%) 76 | . 90 71 55 66 58 Engine 11 | . 12 14 11 11 6 Treads 12 | . 22 . . . . Hover 2 | . 3 . . . . Flight 9 | . 1 28 22 22 16 Device 10 | . 10 . 10 11 12 Storage 6 | . 11 . . . 2 Processor 2 | . . . . . 13 Energy Gun 1 | . 2 . . . . Ballistic Gun 12 | . 22 . . . . Launcher 2 | . . 8 . 11 6 Special Weapon 4 | . 2 19 10 11 1 Peak Build Rating 19 | 6 7 5 10 10 19 Average Rating 7 | 4 6 5 6 10 13 On Entrance 6 | . 6 5 5 10 10 Naked Turns 3 | . . . . . 3 Heaviest Build 29 | 10 29 7 7 7 12 Greatest Support 40 | 40 40 8 9 9 13 Greatest Overweight (x) 1 | . 1 . . . 1 Average Overweight (x) . | . . . . . . Largest Inventory Capacity 15 | 8 15 5 5 5 8 Average Capacity 7 | 6 9 5 5 5 5 Most Carried 9 | 2 9 5 5 5 7 Average Carried 5 | . 5 4 4 4 4 Final Capacity 8 | 8 5 5 5 5 5 Final Carried 5 | 2 5 5 5 5 4 Class Distribution -------------------- 100% | Mutant Dominant Class ---------------- Mutant | -10/Materials Mutant | -10/Mines Mutant | -9/Materials Mutant | -9/Mines Mutant | -8/Materials Resources | -11 -10 -10 -9 -9 -8 ----------- Run | Yrd Mat Min Mat Min Mat Matter Collected 619 | 249 243 . 53 70 4 Remotely . | . . . . . . Salvage Created 494 | . 407 . . . 87 Parts 47 | . 30 . . . 17 Haulers Intercepted . | . . . . . . Recyclers Shooed . | . . . . . . Parts Field Recycled . | . . . . . . Retrieved Matter . | . . . . . . Parts Self-Destructed . | . . . . . . Prevented . | . . . . . . Kills | -11 -10 -10 -9 -9 -8 ------- Run | Yrd Mat Min Mat Min Mat Combat Hostiles Destroyed 18 | . 12 . . . 6 Melee 1 | . 1 . . . . Guns 10 | . 10 . . . . AOE 7 | . 1 . . . 6 Classes Destroyed 6 | . 6 . . . . Worker 2 | . 1 . . . 1 Recycler 3 | . 2 . . . 1 Operator 4 | . 2 . . . 2 Watcher 2 | . 1 . . . 1 Swarmer 13 | . 7 . . . 6 Grunt 5 | . 5 . . . . Best Kill Streak 6 | . 4 . . . 6 Combat Bots Only 3 | . 3 . . . 3 Max Kills in Single Turn 3 | . 3 . . . 3 Gunslinging . | . . . . . . Exploded 2 | . 1 . . . 2 Melee 1 | . 1 . . . . Uniques/NPCs Destroyed . | . . . . . . Combat | -11 -10 -10 -9 -9 -8 -------- Run | Yrd Mat Min Mat Min Mat Hostile Shots Fired 180 | . 96 . 10 6 68 Missed 65 | . 27 . 5 4 29 Damage Taken 1592 | . 723 . 70 15 784 Core 783 | . 186 . 36 . 561 Absorbed by Shields . | . . . . . . Core Remaining (%) 72 | 100 . 25 . 91 . Volleys Fired 95 | . 54 1 26 . 14 Largest 2 | . 2 2 1 . 1 Hottest 200 | . 60 200 100 . 30 Shots Fired 141 | . 99 2 26 . 14 Gun 101 | . 96 . 5 . . Cannon . | . . . . . . Launcher 16 | . 2 . . . 14 Special 24 | . 1 2 21 . . Kinetic 93 | . 88 . 5 . . Thermal 24 | . 1 2 21 . . Explosive 16 | . 2 . . . 14 Electromagnetic 8 | . 8 . . . . Robot Hit Streak 5 | . 5 . 2 . 3 Robot Miss Streak 5 | . 5 . 2 . 2 Penetration Max . | . . . . . . Secondary Targets 2 | . 2 . . . . Max Gunslinging Chain 1 | . 1 . . . . Shots Hit Robots 51 | . 45 . 3 . 3 Core Hits 43 | . 29 . . . 14 Critical Kills . | . . . . . . Critical Parts Destroyed 1 | . 1 . . . . Critical Strikes 1 | . 1 . . . . Destroy 1 | . 1 . . . . Melee Attacks . | . . . . . . Impact . | . . . . . . Slashing . | . . . . . . Piercing . | . . . . . . Sneak Attacks . | . . . . . . Combat Hostiles . | . . . . . . Follow-up Attacks . | . . . . . . Damage Inflicted 1401 | . 679 . 24 . 698 Guns 423 | . 399 . 24 . . Cannons . | . . . . . . Explosions 934 | . 248 . . . 686 Melee . | . . . . . . Ramming 44 | . 32 . . . 12 Kinetic 360 | . 336 . 24 . . Thermal 73 | . 73 . . . . Explosive 861 | . 175 . . . 686 Electromagnetic 63 | . 63 . . . . Impact . | . . . . . . Slashing . | . . . . . . Piercing . | . . . . . . Highest Corruption 1 | . 1 1 1 1 . Average Corruption 1 | . 1 1 1 1 . Corruption Purged . | . . . . . . Corruption Blocked . | . . . . . . Effects 4 | . . . 3 1 . Message Errors 1 | . . . . 1 . Matter Fused 1 | . . . 1 . . Heat Flow Errors 2 | . . . 2 . . Overload Shots . | . . . . . . Overflow Damage 23 | . 10 . . . 13 Projectiles . | . . . . . . Explosions 23 | . 10 . . . 13 Melee . | . . . . . . Knockbacks 1 | . 1 . . . . Impact 1 | . 1 . . . . Kinetic . | . . . . . . Secondary . | . . . . . . Self-Inflicted Damage 261 | . 100 . . . 161 Shots 9 | . 3 . . . 6 Rammed 18 | . 14 . . . 4 Targets Rammed 19 | . 15 . . . 4 Kicked . | . . . . . . Crushed 1 | . 1 . . . . Highest Temperature 237 | . 36 70 237 . 9 Average Temperature 49 | . 6 38 67 . 9 Received Heat Transfer 249 | . 114 . 27 . 108 Siege Activations . | . . . . . . Robots Corrupted . | . . . . . . Combat Hostiles . | . . . . . . Parts Fried . | . . . . . . Impact Corruptions . | . . . . . . Robots Melted . | . . . . . . Combat Hostiles . | . . . . . . Parts Melted . | . . . . . . Heat Transferred 100 | . 100 . . . . Parts Sabotaged . | . . . . . . Parts Stolen . | . . . . . . Parts Stripped . | . . . . . . Power Chain Reactions 1 | . 1 . . . . Alert | -11 -10 -10 -9 -9 -8 ------- Run | Yrd Mat Min Mat Min Mat Peak Influence 467 | . 250 54 127 25 467 Initial 53 | . . 53 20 10 9 Average 82 | . 67 53 58 24 213 Maximum Alert Level 2 | . 1 . . . 2 Low Security (%) 91 | 100 96 100 100 100 59 Level 1 5 | . 3 . . . 20 Level 2 3 | . . . . . 19 Level 3 . | . . . . . . Level 4 . | . . . . . . Level 5 . | . . . . . . High Security . | . . . . . . Max Security . | . . . . . . Squads Dispatched 10 | . 4 . 2 . 4 Investigation 2 | . 1 . 1 . . Extermination . | . . . . . . Reinforcement 6 | . 3 . 1 . 2 Assault . | . . . . . . Garrison 2 | . . . . . 2 Intercept . | . . . . . . Searches Triggered . | . . . . . . Construction Impeded . | . . . . . . Haulers Reinforced . | . . . . . . Active Scanning Responses . | . . . . . . Cargo Convoy Interrupts . | . . . . . . Stealth | -11 -10 -10 -9 -9 -8 --------- Run | Yrd Mat Min Mat Min Mat Distress Signals 7 | . 1 . 4 . 2 Communications Jammed . | . . . . . . Distress Signals . | . . . . . . Times Spotted 78 | . 22 . 15 10 31 Peak Tracking Total 21 | . 6 . 7 21 9 Tactical Retreats 13 | . 2 . 5 2 4 Traps | -11 -10 -10 -9 -9 -8 ------- Run | Yrd Mat Min Mat Min Mat Traps Triggered 2 | . . . 1 . 1 Indirectly . | . . . . . . Trap Hack Attempts . | . . . . . . Triggered . | . . . . . . Disarmed . | . . . . . . Reprogrammed 6 | . 6 . . . . Reused . | . . . . . . Traps Extracted . | . . . . . . Installed . | . . . . . . Triggered . | . . . . . . Most Traps Carried 1 | . . . . 1 1 Machines | -11 -10 -10 -9 -9 -8 ---------- Run | Yrd Mat Min Mat Min Mat Machines Disabled 3 | . . . . . 3 Max in Single Turn 1 | . . . . . 1 Machines Repaired . | . . . . . . Machines Dismantled . | . . . . . . Machines Sabotaged . | . . . . . . Overloaded Fab Kills . | . . . . . . Hacking | -11 -10 -10 -9 -9 -8 --------- Run | Yrd Mat Min Mat Min Mat Machines Accessed 10 | . 4 . 4 . 2 Terminals 7 | . 2 . 3 . 2 Fabricators . | . . . . . . Repair Stations 1 | . 1 . . . . Recycling Units 1 | . 1 . . . . Scanalyzers 1 | . . . 1 . . Garrison Access . | . . . . . . Total Hacks 28 | . 12 . 11 . 5 Successful 14 | . 6 . 5 . 3 Failed 14 | . 6 . 6 . 2 Catastrophic 1 | . 1 . . . . Database Lockouts . | . . . . . . Manual . | . . . . . . Terminals 21 | . 8 . 8 . 5 Fabricators . | . . . . . . Repair Stations 2 | . 2 . . . . Recycling Units 2 | . 2 . . . . Scanalyzers 3 | . . . 3 . . Garrison Access . | . . . . . . Terminal Hacks 11 | . 5 . 3 . 3 Robot Analysis 1 | . 1 . . . . Prototype ID Bank 3 | . 2 . . . 1 Branch Access Points 1 | . . . . . 1 Alert Level 1 | . 1 . . . . Unreport Threat 1 | . . . 1 . . Locate Traps 1 | . . . 1 . . Reprogram Traps 1 | . 1 . . . . Zone Layout 2 | . . . 1 . 1 Fabricator Hacks . | . . . . . . Repair Station Hacks . | . . . . . . Recycling Unit Hacks 1 | . 1 . . . . Retrieve Components 1 | . 1 . . . . Scanalyzer 2 | . . . 2 . . Insert Component 1 | . . . 1 . . Analyze 1 | . . . 1 . . Garrison Access Hacks . | . . . . . . Unauthorized Hacks . | . . . . . . Terminals . | . . . . . . Fabricators . | . . . . . . Repair Stations . | . . . . . . Recycling Units . | . . . . . . Scanalyzers . | . . . . . . Garrison Access . | . . . . . . Data Cores Recovered 1 | . . . . . 1 Used . | . . . . . . Hacking Detections 8 | . 3 . 3 . 2 Full Trace Events 4 | . 2 . 2 . . Feedback Events 2 | . 1 . 1 . . Corruption 2 | . 1 . 1 . . Feedback Blocked . | . . . . . . Robot Schematics Acquired . | . . . . . . Robots Built . | . . . . . . Authchips . | . . . . . . Time . | . . . . . . Total Robot Build Rating . | . . . . . . Part Schematics Acquired 1 | . . . 1 . . Parts Built . | . . . . . . Authchips . | . . . . . . Time . | . . . . . . Total Part Build Rating . | . . . . . . Parts Repaired . | . . . . . . Time . | . . . . . . Parts Recycled . | . . . . . . Recycled Matter . | . . . . . . Retrieved Matter . | . . . . . . Retrieved Components 9 | . 9 . . . . Parts Scanalyzed 1 | . . . 1 . . Part Schematics Acquired 1 | . . . 1 . . Parts Damaged . | . . . . . . Bothacking | -11 -10 -10 -9 -9 -8 ------------ Run | Yrd Mat Min Mat Min Mat Used RIF Installer . | . . . . . . Robots Hacked . | . . . . . . Non-combat . | . . . . . . Combat . | . . . . . . Robot Hacks Applied . | . . . . . . Relay Couplers Released . | . . . . . . Fabnet Peak Effective % . | . . . . . . Robots Rewired . | . . . . . . Allies Hacked . | . . . . . . Hacks Repelled . | . . . . . . Allies | -11 -10 -10 -9 -9 -8 -------- Run | Yrd Mat Min Mat Min Mat Total Allies 2 | . . 2 . . . Largest Group 2 | . . 2 2 . . Highest-Rated Group 41 | . . 41 41 . . Highest-Rated Ally 31 | . . 31 31 . . Total Orders . | . . . . . . Ally Attacks 10 | . . . 10 . . Total Damage 87 | . . . 87 . . Kills 1 | . . . 1 . . Allies Corrupted . | . . . . . . Allies Melted . | . . . . . . Intel | -11 -10 -10 -9 -9 -8 ------- Run | Yrd Mat Min Mat Min Mat Robot Analysis Total 1 | . 1 . . . . Derelict Logs Recovered 2 | . . . . 2 . Drone Launches . | . . . . . . Drone Recoveries . | . . . . . . Exploration | -11 -10 -10 -9 -9 -8 ------------- Run | Yrd Mat Min Mat Min Mat Turns Passed 1664 | 64 891 47 290 116 256 Spaces Moved 1720 | 36 508 68 364 308 436 Core 60 | 3 . . . . 57 Treads 395 | 33 362 . . . . Legs . | . . . . . . Wheels . | . . . . . . Hover 107 | . 107 . . . . Flight 1158 | . 39 68 364 308 379 Fastest Speed 34 | 50 37 37 37 37 34 Average Speed 69 | 150 130 37 37 37 45 Slowest Speed 160 | 160 160 37 37 37 112 Overloaded Moves . | . . . . . . Propulsion Burnouts . | . . . . . . Robots Hopped 15 | . . 4 7 1 3 Cave-ins Triggered . | . . . . . . Exploration Rate (%) 45 | 3 72 16 43 71 68 Regions Visited 5 Branch Regions 2 Pre-discovered Areas 1 | . . . . 1 . Known Exits Taken . | . . . . . . Unknown Exits Taken 5 | 1 1 1 1 1 . Scrap Searched 2 | . . . . 2 . Spaces Dug 33 | . . 2 20 . 11 Terrain Destroyed 157 | . 10 2 20 . 125 Melee . | . . . . . . Projectile 22 | . . 2 20 . . AOE 135 | . 10 . . . 125 Terrain Rammed . | . . . . . . Walls Destroyed . | . . . . . . Machines Disabled . | . . . . . . Actions | -11 -10 -10 -9 -9 -8 --------- Run | Yrd Mat Min Mat Min Mat Total 2004 | 43 652 78 444 308 479 Wait 81 | . 15 9 52 . 5 Move 1685 | 35 507 59 349 305 430 Hop 15 | . . 4 7 1 3 Pick Up 23 | 2 14 1 1 1 4 Fast Attach 21 | 6 8 . 2 . 5 Attach 7 | . 3 . . . 4 Detach 11 | . 6 . 1 . 4 Swap 16 | . 10 3 3 . . Drop 31 | . 20 1 3 1 6 Fire 95 | . 54 1 26 . 14 Melee . | . . . . . . Ram 4 | . . . . . 4 Kick . | . . . . . . Crush 15 | . 15 . . . . Escape Stasis . | . . . . . . Rewire . | . . . . . . Trap . | . . . . . . Miscellaneous . | . . . . . . Route ------- -11/Scrapyard -10/Materials (discovered 3 exits: *Mat x2 / [*Min]) -10/Mines -9/Materials -9/Mines -8/Materials History --------- Turn | Location | Event 14 | -11/Scrapyard | Discovered new exit (range 15) 65 | -11/Scrapyard | Entered Materials 281 | -10/Materials | Discovered new exit (range 9) 310 | -10/Materials | Build established: Mutant 537 | -10/Materials | Discovered new exit (range 5) 743 | -10/Materials | Discovered new exit (range 8) 829 | -10/Materials | Core integrity fell below 50% 879 | -10/Materials | Lost 3 parts (1p2n) 956 | -10/Materials | Entered Mines 977 | -10/Mines | Discovered new exit (range 15) 978 | -10/Mines | Met a Derelict testing a Signal Generator 981 | -10/Mines | Found Signal Generator 1003 | -10/Mines | Entered Materials 1003 | -9/Materials | Accompanied by 2 allies 1003 | -9/Materials | Evolved 2 slots: Utility x2 1008 | -9/Materials | Led the pair of lost Derelicts to an unsafe place 1284 | -9/Materials | Discovered new exit (range 7) 1293 | -9/Materials | Entered Mines 1294 | -9/Mines | Assembled infested the area 1306 | -9/Mines | Learned location of Zion (-7) 1341 | -9/Mines | Discovered new exit (range 9) 1355 | -9/Mines | Found a hidden stash of uninstalled traps 1409 | -9/Mines | Entered Materials 1409 | -8/Materials | Evolved 2 slots: Power x1, Propulsion x1 1562 | -8/Materials | Garrison activated, responded to threat 1608 | -8/Materials | Core integrity fell below 50% 1646 | -8/Materials | Core integrity fell below 20% 1664 | -8/Materials | Lost 4 parts (1p2n1w) 1665 | -8/Materials | Destroyed by Y-45 Defender with Heavy Assault Rifle Last Messages --------------- Critical hit (Burn: +37). C-17 Slicer knocked back. Knocked back. ECM Suite severed. W-25 Informer sends out distress signal. Penetrated by Slug. Mni. Grenade Launcher destroyed. Imp. Flight Unit destroyed. Acquired 2 matter. Adv. Targeting Computer severed. Slammed into C-17 Slicer. ECM Suite severed. Triggered Explosive Trap. An explosion rips through the floor. C-17 Slicer destroyed. K-01 Serf collects debris. R-06 Scavenger inserts Wheel into recycling unit. K-01 Serf collects debris. Adv. Visual Processing Unit severed. Map ----- +----------------------------------------------------+ | ???????????# # | | ???????????# #! | | ???????????# # | | ???????????# + """ | | ???????????# # """ | | ???????????# # """ | | ???????????# # | | ???????????# # | | ???????????####+###### """ | | ??????????????# #????# """ | | ??????????????# #????# ! """ | | ??????????????# #????# | | ??????????????# #????# | | ??????????????# #????#######T | | ??????????????# #??????????## | | ???????######?# #???????????? | | ???????# # #???????????? | | ???????# """ # ##+########## | | ???????# """ + | | ???????# """ # | | ???????# # | | ???????#! ?# | | ???############+##+## | | ???# / #? ### | | ???# ####### """ #?? #?? | | ???#@#?????# """ #??? #?? | | ??# #????# """ #???? #?? | | ??# Y ???+ ! / #?? | | ??# ###??# """ # ??? | | ??## ##????# """ # ??? | | ???# #?????#! """ # ??? | | ???# #?????# ! # ??? | | ???# w?????########## ??? | | ???###??????????????# ??? | | ????????????????????# ??? | | ????????????????????# ??? | | ????????????????????# #?? | | ????????????????????# #?? | | ????????????????????# #?? | | ????????????????????# #?? | | ????????????????????# #?? | | ????????????????????# #?? | | ????????????????????# #?? | | ????????????????????# #?? | | ????????????????????# ### | | ????????????????????# | | ????????????????????# ### | | ????????????????????# #?? | | ????????????????????# #?? | | ????????????????????# #?? | +----------------------------------------------------+ Best States ------------- Heat Dissipation 35 Energy Generation 10 Energy Capacity 250 Matter Stores 300 Matter Capacity 300 Sight Range 20 Terrain Scan Density 10 ECM Strength 2 Evasion (%) 63 Targeting Accuracy 8 Recoil Reduction 2 Item Schematics ----------------- Flight Unit | -9/Materials | Scanalyzed Robot Schematics ------------------ None Fabricated ------------ Nothing Alien Tech Used ----------------- None Achievements -------------- Hunted Challenges ------------ None Game ------ Seed SapperSwordFlightbrick Manual? 0 Play Time 00:48:48 Cumulative 43.4 hours Start 2024.09.19 @ 16:05:22 End 2024.09.19 @ 17:26:02 Sessions 1 Manual Loads 0 Difficulty Rogue Special Mode None Game No. 27 Rogue 27 Adventurer 0 Explorer 0 Win Type - Total 0 Types 0/0/0/0/0/0/0/0/0 Lore% 11 Gallery% 27 Achievement% 19 Wizard Run 0 Options --------- Layout 1 ASCII 0 Keyboard 1 Movement Numpad Keybinds 0 Fullscreen 1 Font 24/Smallcaps Map View 50x35 Zoom Use 0% Tactical HUD 0 Map Filters NONE Filters NONE Steam 1 RUN: c92e7136-b852-41ae-93f3-01f6a3795e9d